{"text_format":"1","workbook":"xlsx","n_sheets":1,"sheets":["Tabelle1"],"not_rendered":{"charts":0,"images":1,"macros":1,"external_links":0,"defined_names":1,"comments":0,"pivot_tables":0},"unopened":[],"bounds":{"document_bytes":16777216,"sheet_cells":100000,"rows_first":2000,"rows_last":500,"rows_between":2000,"halvings":0,"cell_chars":16384,"cell_head_chars":4096},"cells_cut":0,"cells_raw":0,"read":"whole","date_system":"1900"}

{"sheet":"Tabelle1","index":0,"n_rows":53,"n_cols":36,"rows_kept":53,"cut":false,"hidden":false,"merged":[[8,29,8,32],[9,29,9,32],[47,31,47,34],[47,26,47,29],[41,1,41,6],[41,15,41,20],[10,15,10,18],[8,1,8,4],[7,26,7,28],[7,33,7,35],[11,29,11,32],[36,22,36,27],[11,1,11,4],[11,8,11,11],[11,15,11,18],[11,22,11,25],[32,22,32,27],[32,29,32,34],[36,29,36,34],[36,1,36,6],[10,29,10,32],[7,15,7,18],[8,15,8,18],[9,15,9,18],[1,1,1,4],[2,1,2,4],[3,1,3,4],[0,1,0,4],[7,29,7,32],[1,11,1,21],[3,11,3,21],[0,5,0,8],[1,5,1,8],[2,5,2,8],[3,5,3,8],[7,1,7,4],[7,8,7,11],[7,5,7,7],[7,12,7,14],[7,19,7,21],[6,1,6,7],[6,8,6,14],[6,15,6,21],[6,22,6,28],[6,29,6,35],[7,22,7,25],[8,22,8,25],[9,22,9,25],[10,22,10,25],[8,8,8,11],[9,8,9,11],[51,1,51,20],[52,1,52,20],[10,1,10,4],[9,1,9,4],[49,1,49,20],[50,1,50,20],[45,15,45,20],[36,8,36,13],[36,15,36,20],[32,1,32,6],[32,8,32,13],[32,15,32,20],[48,1,48,20],[47,1,47,20],[45,1,45,6],[10,8,10,11]]}
[null,"DRK Einrichtung",null,null,null,"Kita Sommerwiese"]
["I","Gruppe",null,null,null,"Pusteblumen",null,null,null,null,"[   ]","Antrag auf Genehmigung des Dienstplanes."]
["II","Gruppenform",null,null,null,"III"]
["III","KW",null,null,null,{"$f":"WEEKNUM(A14)","v":48},null,null,null,null,"[   ]","Antrag auf Änderung des bereits genehmigten Dienstplanes."]
["Alltagshelfer"]
["Küche"]
["Leitung","Name, Vorname",null,null,null,null,null,null,"Name, Vorname",null,null,null,null,null,null,"Name, Vorname",null,null,null,null,null,null,"Name, Vorname",null,null,null,null,null,null,"Name, Vorname"]
[null,"Qualifikation",null,null,null,null,null,null,"Qualifikation",null,null,null,null,null,null,"Qualifikation",null,null,null,null,null,null,"Qualifikation",null,null,null,null,null,null,"Qualifikation"]
[null,"Wochenstunden lt. Vertrag",null,null,null,null,null,null,"Wochenstunden lt. Vertrag",null,null,null,null,null,null,"Wochenstunden lt. Vertrag",null,null,null,null,null,null,"Wochenstunden lt. Vertrag",null,null,null,null,null,null,"Wochenstunden lt. Vertrag",null,null,null,null,40]
[null,"Stunden geplant gesamt",null,null,null,null,{"$f":"SUM(G14+G16+G18+G20+G22+G24+G26)*24+((G9/5)*Tabelle1[[#Totals],[Abwes.]])","v":0},null,"Stunden geplant gesamt",null,null,null,null,{"$f":"SUM(N14+N16+N18+N20+N22+N24+N26)*24+((N9/5)*Tabelle13[[#Totals],[Abwes.]])","v":0},null,"Stunden geplant gesamt",null,null,null,null,{"$f":"SUM(U14+U16+U18+U20+U22+U24+U26)*24+((U9/5)*Tabelle14[[#Totals],[Abwes.]])","v":0},null,"Stunden geplant gesamt",null,null,null,null,{"$f":"SUM(AB14+AB16+AB18+AB20+AB22+AB24+AB26)*24+((AB9/5)*Tabelle15[[#Totals],[Abwes.]])","v":0},null,"Stunden geplant gesamt",null,null,null,null,{"$f":"SUM(AI14+AI16+AI18+AI20+AI22+AI24+AI26)*24+((AI9/5)*Tabelle16[[#Totals],[Abwes.]])","v":0}]
[null,"Stunden Änderungen gesamt",null,null,null,null,{"$f":"SUM(G15+G17+G19+G21+G23+G25+G27)*24+((G9/5*B29))","v":0},null,"Stunden Änderungen gesamt",null,null,null,null,{"$f":"SUM(N15+N17+N19+N21+N23+N25+N27)*24+((N9/5*I29))","v":0},null,"Stunden Änderungen gesamt",null,null,null,null,{"$f":"SUM(U15+U17+U19+U21+U23+U25+U27)*24+((U9/5*P29))","v":0},null,"Stunden Änderungen gesamt",null,null,null,null,{"$f":"SUM(AB15+AB17+AB19+AB21+AB23+AB25+AB27)*24+((AB9/5*W29))","v":0},null,"Stunden Änderungen gesamt",null,null,null,null,{"$f":"SUM(AI15+AI17+AI19+AI21+AI23+AI25+AI27)*24+((AI9/5*AD29))","v":0}]
[null," +/- Stunden zu Beginn der KW",null,null,null,null,0,null," +/- Stunden zu Beginn der KW",null,null,null,null,null,null," +/- Stunden zu Beginn der KW",null,null,null,null,0,null," +/- Stunden zu Beginn der KW",null,null,null,null,0,null," +/- Stunden zu Beginn der KW",null,null,null,null,0]
["Tag/Datum","Abwes.","Beginn","Ende","Beginn\nPause","Ende\nPause","Stunden","Bemerkung","Abwes.","Beginn","Ende","Beginn\nPause","Ende\nPause","Stunden","Bemerkung","Abwes.","Beginn","Ende","Beginn\nPause","Ende\nPause","Stunden","Bemerkung","Abwes.","Beginn","Ende","Beginn\nPause","Ende\nPause","Stunden","Bemerkung","Abwes.","Beginn","Ende","Beginn\nPause","Ende\nPause","Stunden","Bemerkung"]
["2023-12-01",null,null,null,null,null,{"$f":"Tabelle1[[#This Row],[Ende]]-Tabelle1[[#This Row],[Beginn]]-(Tabelle1[[#This Row],[Ende\nPause]]-Tabelle1[[#This Row],[Beginn\nPause]])","v":"00:00:00"},null,null,null,null,null,null,{"$f":"Tabelle13[[#This Row],[Ende]]-Tabelle13[[#This Row],[Beginn]]-(Tabelle13[[#This Row],[Ende\nPause]]-Tabelle13[[#This Row],[Beginn\nPause]])","v":"00:00:00"},null,null,null,null,null,null,{"$f":"Tabelle14[[#This Row],[Ende]]-Tabelle14[[#This Row],[Beginn]]-(Tabelle14[[#This Row],[Ende\nPause]]-Tabelle14[[#This Row],[Beginn\nPause]])","v":"00:00:00"},null,null,null,null,null,null,{"$f":"Tabelle15[[#This Row],[Ende]]-Tabelle15[[#This Row],[Beginn]]-(Tabelle15[[#This Row],[Ende\nPause]]-Tabelle15[[#This Row],[Beginn\nPause]])","v":"00:00:00"},null,null,null,null,null,null,{"$f":"Tabelle16[[#This Row],[Ende]]-Tabelle16[[#This Row],[Beginn]]-(Tabelle16[[#This Row],[Ende\nPause]]-Tabelle16[[#This Row],[Beginn\nPause]])","v":"00:00:00"}]
["Änderung zu oben",null,null,null,null,null,{"$f":"Tabelle1[[#This Row],[Ende]]-Tabelle1[[#This Row],[Beginn]]-(Tabelle1[[#This Row],[Ende\nPause]]-Tabelle1[[#This Row],[Beginn\nPause]])","v":"00:00:00"},null,null,null,null,null,null,{"$f":"Tabelle13[[#This Row],[Ende]]-Tabelle13[[#This Row],[Beginn]]-(Tabelle13[[#This Row],[Ende\nPause]]-Tabelle13[[#This Row],[Beginn\nPause]])","v":"00:00:00"},null,null,null,null,null,null,{"$f":"Tabelle14[[#This Row],[Ende]]-Tabelle14[[#This Row],[Beginn]]-(Tabelle14[[#This Row],[Ende\nPause]]-Tabelle14[[#This Row],[Beginn\nPause]])","v":"00:00:00"},null,null,null,null,null,null,{"$f":"Tabelle15[[#This Row],[Ende]]-Tabelle15[[#This Row],[Beginn]]-(Tabelle15[[#This Row],[Ende\nPause]]-Tabelle15[[#This Row],[Beginn\nPause]])","v":"00:00:00"},null,null,null,null,null,null,{"$f":"Tabelle16[[#This Row],[Ende]]-Tabelle16[[#This Row],[Beginn]]-(Tabelle16[[#This Row],[Ende\nPause]]-Tabelle16[[#This Row],[Beginn\nPause]])","v":"00:00:00"}]
[{"$f":"A14+1","v":"2023-12-02"},null,null,null,null,null,{"$f":"Tabelle1[[#This Row],[Ende]]-Tabelle1[[#This Row],[Beginn]]-(Tabelle1[[#This Row],[Ende\nPause]]-Tabelle1[[#This Row],[Beginn\nPause]])","v":"00:00:00"},null,null,null,null,null,null,{"$f":"Tabelle13[[#This Row],[Ende]]-Tabelle13[[#This Row],[Beginn]]-(Tabelle13[[#This Row],[Ende\nPause]]-Tabelle13[[#This Row],[Beginn\nPause]])","v":"00:00:00"},null,null,null,null,null,null,{"$f":"Tabelle14[[#This Row],[Ende]]-Tabelle14[[#This Row],[Beginn]]-(Tabelle14[[#This Row],[Ende\nPause]]-Tabelle14[[#This Row],[Beginn\nPause]])","v":"00:00:00"},null,null,null,null,null,null,{"$f":"Tabelle15[[#This Row],[Ende]]-Tabelle15[[#This Row],[Beginn]]-(Tabelle15[[#This Row],[Ende\nPause]]-Tabelle15[[#This Row],[Beginn\nPause]])","v":"00:00:00"},null,null,null,null,null,null,{"$f":"Tabelle16[[#This Row],[Ende]]-Tabelle16[[#This Row],[Beginn]]-(Tabelle16[[#This Row],[Ende\nPause]]-Tabelle16[[#This Row],[Beginn\nPause]])","v":"00:00:00"}]
["Änderung zu oben",null,null,null,null,null,{"$f":"Tabelle1[[#This Row],[Ende]]-Tabelle1[[#This Row],[Beginn]]-(Tabelle1[[#This Row],[Ende\nPause]]-Tabelle1[[#This Row],[Beginn\nPause]])","v":"00:00:00"},null,null,null,null,null,null,{"$f":"Tabelle13[[#This Row],[Ende]]-Tabelle13[[#This Row],[Beginn]]-(Tabelle13[[#This Row],[Ende\nPause]]-Tabelle13[[#This Row],[Beginn\nPause]])","v":"00:00:00"},null,null,null,null,null,null,{"$f":"Tabelle14[[#This Row],[Ende]]-Tabelle14[[#This Row],[Beginn]]-(Tabelle14[[#This Row],[Ende\nPause]]-Tabelle14[[#This Row],[Beginn\nPause]])","v":"00:00:00"},null,null,null,null,null,null,{"$f":"Tabelle15[[#This Row],[Ende]]-Tabelle15[[#This Row],[Beginn]]-(Tabelle15[[#This Row],[Ende\nPause]]-Tabelle15[[#This Row],[Beginn\nPause]])","v":"00:00:00"},null,null,null,null,null,null,{"$f":"Tabelle16[[#This Row],[Ende]]-Tabelle16[[#This Row],[Beginn]]-(Tabelle16[[#This Row],[Ende\nPause]]-Tabelle16[[#This Row],[Beginn\nPause]])","v":"00:00:00"}]
[{"$f":"A16+1","v":"2023-12-03"},null,null,null,null,null,{"$f":"Tabelle1[[#This Row],[Ende]]-Tabelle1[[#This Row],[Beginn]]-(Tabelle1[[#This Row],[Ende\nPause]]-Tabelle1[[#This Row],[Beginn\nPause]])","v":"00:00:00"},null,null,null,null,null,null,{"$f":"Tabelle13[[#This Row],[Ende]]-Tabelle13[[#This Row],[Beginn]]-(Tabelle13[[#This Row],[Ende\nPause]]-Tabelle13[[#This Row],[Beginn\nPause]])","v":"00:00:00"},null,null,null,null,null,null,{"$f":"Tabelle14[[#This Row],[Ende]]-Tabelle14[[#This Row],[Beginn]]-(Tabelle14[[#This Row],[Ende\nPause]]-Tabelle14[[#This Row],[Beginn\nPause]])","v":"00:00:00"},null,null,null,null,null,null,{"$f":"Tabelle15[[#This Row],[Ende]]-Tabelle15[[#This Row],[Beginn]]-(Tabelle15[[#This Row],[Ende\nPause]]-Tabelle15[[#This Row],[Beginn\nPause]])","v":"00:00:00"},null,null,null,null,null,null,{"$f":"Tabelle16[[#This Row],[Ende]]-Tabelle16[[#This Row],[Beginn]]-(Tabelle16[[#This Row],[Ende\nPause]]-Tabelle16[[#This Row],[Beginn\nPause]])","v":"00:00:00"}]
["Änderung zu oben",null,null,null,null,null,{"$f":"Tabelle1[[#This Row],[Ende]]-Tabelle1[[#This Row],[Beginn]]-(Tabelle1[[#This Row],[Ende\nPause]]-Tabelle1[[#This Row],[Beginn\nPause]])","v":"00:00:00"},null,null,null,null,null,null,{"$f":"Tabelle13[[#This Row],[Ende]]-Tabelle13[[#This Row],[Beginn]]-(Tabelle13[[#This Row],[Ende\nPause]]-Tabelle13[[#This Row],[Beginn\nPause]])","v":"00:00:00"},null,null,null,null,null,null,{"$f":"Tabelle14[[#This Row],[Ende]]-Tabelle14[[#This Row],[Beginn]]-(Tabelle14[[#This Row],[Ende\nPause]]-Tabelle14[[#This Row],[Beginn\nPause]])","v":"00:00:00"},null,null,null,null,null,null,{"$f":"Tabelle15[[#This Row],[Ende]]-Tabelle15[[#This Row],[Beginn]]-(Tabelle15[[#This Row],[Ende\nPause]]-Tabelle15[[#This Row],[Beginn\nPause]])","v":"00:00:00"},null,null,null,null,null,null,{"$f":"Tabelle16[[#This Row],[Ende]]-Tabelle16[[#This Row],[Beginn]]-(Tabelle16[[#This Row],[Ende\nPause]]-Tabelle16[[#This Row],[Beginn\nPause]])","v":"00:00:00"}]
[{"$f":"A18+1","v":"2023-12-04"},null,null,null,null,null,{"$f":"Tabelle1[[#This Row],[Ende]]-Tabelle1[[#This Row],[Beginn]]-(Tabelle1[[#This Row],[Ende\nPause]]-Tabelle1[[#This Row],[Beginn\nPause]])","v":"00:00:00"},null,null,null,null,null,null,{"$f":"Tabelle13[[#This Row],[Ende]]-Tabelle13[[#This Row],[Beginn]]-(Tabelle13[[#This Row],[Ende\nPause]]-Tabelle13[[#This Row],[Beginn\nPause]])","v":"00:00:00"},null,null,null,null,null,null,{"$f":"Tabelle14[[#This Row],[Ende]]-Tabelle14[[#This Row],[Beginn]]-(Tabelle14[[#This Row],[Ende\nPause]]-Tabelle14[[#This Row],[Beginn\nPause]])","v":"00:00:00"},null,null,null,null,null,null,{"$f":"Tabelle15[[#This Row],[Ende]]-Tabelle15[[#This Row],[Beginn]]-(Tabelle15[[#This Row],[Ende\nPause]]-Tabelle15[[#This Row],[Beginn\nPause]])","v":"00:00:00"},null,null,null,null,null,null,{"$f":"Tabelle16[[#This Row],[Ende]]-Tabelle16[[#This Row],[Beginn]]-(Tabelle16[[#This Row],[Ende\nPause]]-Tabelle16[[#This Row],[Beginn\nPause]])","v":"00:00:00"}]
["Änderung zu oben",null,null,null,null,null,{"$f":"Tabelle1[[#This Row],[Ende]]-Tabelle1[[#This Row],[Beginn]]-(Tabelle1[[#This Row],[Ende\nPause]]-Tabelle1[[#This Row],[Beginn\nPause]])","v":"00:00:00"},null,null,null,null,null,null,{"$f":"Tabelle13[[#This Row],[Ende]]-Tabelle13[[#This Row],[Beginn]]-(Tabelle13[[#This Row],[Ende\nPause]]-Tabelle13[[#This Row],[Beginn\nPause]])","v":"00:00:00"},null,null,null,null,null,null,{"$f":"Tabelle14[[#This Row],[Ende]]-Tabelle14[[#This Row],[Beginn]]-(Tabelle14[[#This Row],[Ende\nPause]]-Tabelle14[[#This Row],[Beginn\nPause]])","v":"00:00:00"},null,null,null,null,null,null,{"$f":"Tabelle15[[#This Row],[Ende]]-Tabelle15[[#This Row],[Beginn]]-(Tabelle15[[#This Row],[Ende\nPause]]-Tabelle15[[#This Row],[Beginn\nPause]])","v":"00:00:00"},null,null,null,null,null,null,{"$f":"Tabelle16[[#This Row],[Ende]]-Tabelle16[[#This Row],[Beginn]]-(Tabelle16[[#This Row],[Ende\nPause]]-Tabelle16[[#This Row],[Beginn\nPause]])","v":"00:00:00"}]
[{"$f":"A20+1","v":"2023-12-05"},null,null,null,null,null,{"$f":"Tabelle1[[#This Row],[Ende]]-Tabelle1[[#This Row],[Beginn]]-(Tabelle1[[#This Row],[Ende\nPause]]-Tabelle1[[#This Row],[Beginn\nPause]])","v":"00:00:00"},null,null,null,null,null,null,{"$f":"Tabelle13[[#This Row],[Ende]]-Tabelle13[[#This Row],[Beginn]]-(Tabelle13[[#This Row],[Ende\nPause]]-Tabelle13[[#This Row],[Beginn\nPause]])","v":"00:00:00"},null,null,null,null,null,null,{"$f":"Tabelle14[[#This Row],[Ende]]-Tabelle14[[#This Row],[Beginn]]-(Tabelle14[[#This Row],[Ende\nPause]]-Tabelle14[[#This Row],[Beginn\nPause]])","v":"00:00:00"},null,null,null,null,null,null,{"$f":"Tabelle15[[#This Row],[Ende]]-Tabelle15[[#This Row],[Beginn]]-(Tabelle15[[#This Row],[Ende\nPause]]-Tabelle15[[#This Row],[Beginn\nPause]])","v":"00:00:00"},null,null,null,null,null,null,{"$f":"Tabelle16[[#This Row],[Ende]]-Tabelle16[[#This Row],[Beginn]]-(Tabelle16[[#This Row],[Ende\nPause]]-Tabelle16[[#This Row],[Beginn\nPause]])","v":"00:00:00"}]
["Änderung zu oben",null,null,null,null,null,{"$f":"Tabelle1[[#This Row],[Ende]]-Tabelle1[[#This Row],[Beginn]]-(Tabelle1[[#This Row],[Ende\nPause]]-Tabelle1[[#This Row],[Beginn\nPause]])","v":"00:00:00"},null,null,null,null,null,null,{"$f":"Tabelle13[[#This Row],[Ende]]-Tabelle13[[#This Row],[Beginn]]-(Tabelle13[[#This Row],[Ende\nPause]]-Tabelle13[[#This Row],[Beginn\nPause]])","v":"00:00:00"},null,null,null,null,null,null,{"$f":"Tabelle14[[#This Row],[Ende]]-Tabelle14[[#This Row],[Beginn]]-(Tabelle14[[#This Row],[Ende\nPause]]-Tabelle14[[#This Row],[Beginn\nPause]])","v":"00:00:00"},null,null,null,null,null,null,{"$f":"Tabelle15[[#This Row],[Ende]]-Tabelle15[[#This Row],[Beginn]]-(Tabelle15[[#This Row],[Ende\nPause]]-Tabelle15[[#This Row],[Beginn\nPause]])","v":"00:00:00"},null,null,null,null,null,null,{"$f":"Tabelle16[[#This Row],[Ende]]-Tabelle16[[#This Row],[Beginn]]-(Tabelle16[[#This Row],[Ende\nPause]]-Tabelle16[[#This Row],[Beginn\nPause]])","v":"00:00:00"}]
[{"$f":"A22+1","v":"2023-12-06"},null,null,null,null,null,{"$f":"Tabelle1[[#This Row],[Ende]]-Tabelle1[[#This Row],[Beginn]]-(Tabelle1[[#This Row],[Ende\nPause]]-Tabelle1[[#This Row],[Beginn\nPause]])","v":"00:00:00"},null,null,null,null,null,null,{"$f":"Tabelle13[[#This Row],[Ende]]-Tabelle13[[#This Row],[Beginn]]-(Tabelle13[[#This Row],[Ende\nPause]]-Tabelle13[[#This Row],[Beginn\nPause]])","v":"00:00:00"},null,null,null,null,null,null,{"$f":"Tabelle14[[#This Row],[Ende]]-Tabelle14[[#This Row],[Beginn]]-(Tabelle14[[#This Row],[Ende\nPause]]-Tabelle14[[#This Row],[Beginn\nPause]])","v":"00:00:00"},null,null,null,null,null,null,{"$f":"Tabelle15[[#This Row],[Ende]]-Tabelle15[[#This Row],[Beginn]]-(Tabelle15[[#This Row],[Ende\nPause]]-Tabelle15[[#This Row],[Beginn\nPause]])","v":"00:00:00"},null,null,null,null,null,null,{"$f":"Tabelle16[[#This Row],[Ende]]-Tabelle16[[#This Row],[Beginn]]-(Tabelle16[[#This Row],[Ende\nPause]]-Tabelle16[[#This Row],[Beginn\nPause]])","v":"00:00:00"}]
["Änderung zu oben",null,null,null,null,null,{"$f":"Tabelle1[[#This Row],[Ende]]-Tabelle1[[#This Row],[Beginn]]-(Tabelle1[[#This Row],[Ende\nPause]]-Tabelle1[[#This Row],[Beginn\nPause]])","v":"00:00:00"},null,null,null,null,null,null,{"$f":"Tabelle13[[#This Row],[Ende]]-Tabelle13[[#This Row],[Beginn]]-(Tabelle13[[#This Row],[Ende\nPause]]-Tabelle13[[#This Row],[Beginn\nPause]])","v":"00:00:00"},null,null,null,null,null,null,{"$f":"Tabelle14[[#This Row],[Ende]]-Tabelle14[[#This Row],[Beginn]]-(Tabelle14[[#This Row],[Ende\nPause]]-Tabelle14[[#This Row],[Beginn\nPause]])","v":"00:00:00"},null,null,null,null,null,null,{"$f":"Tabelle15[[#This Row],[Ende]]-Tabelle15[[#This Row],[Beginn]]-(Tabelle15[[#This Row],[Ende\nPause]]-Tabelle15[[#This Row],[Beginn\nPause]])","v":"00:00:00"},null,null,null,null,null,null,{"$f":"Tabelle16[[#This Row],[Ende]]-Tabelle16[[#This Row],[Beginn]]-(Tabelle16[[#This Row],[Ende\nPause]]-Tabelle16[[#This Row],[Beginn\nPause]])","v":"00:00:00"}]
[{"$f":"A24+1","v":"2023-12-07"},null,null,null,null,null,{"$f":"Tabelle1[[#This Row],[Ende]]-Tabelle1[[#This Row],[Beginn]]-(Tabelle1[[#This Row],[Ende\nPause]]-Tabelle1[[#This Row],[Beginn\nPause]])","v":"00:00:00"},null,null,null,null,null,null,{"$f":"Tabelle13[[#This Row],[Ende]]-Tabelle13[[#This Row],[Beginn]]-(Tabelle13[[#This Row],[Ende\nPause]]-Tabelle13[[#This Row],[Beginn\nPause]])","v":"00:00:00"},null,null,null,null,null,null,{"$f":"Tabelle14[[#This Row],[Ende]]-Tabelle14[[#This Row],[Beginn]]-(Tabelle14[[#This Row],[Ende\nPause]]-Tabelle14[[#This Row],[Beginn\nPause]])","v":"00:00:00"},null,null,null,null,null,null,{"$f":"Tabelle15[[#This Row],[Ende]]-Tabelle15[[#This Row],[Beginn]]-(Tabelle15[[#This Row],[Ende\nPause]]-Tabelle15[[#This Row],[Beginn\nPause]])","v":"00:00:00"},null,null,null,null,null,null,{"$f":"Tabelle16[[#This Row],[Ende]]-Tabelle16[[#This Row],[Beginn]]-(Tabelle16[[#This Row],[Ende\nPause]]-Tabelle16[[#This Row],[Beginn\nPause]])","v":"00:00:00"}]
["Änderung zu oben",null,null,null,null,null,{"$f":"Tabelle1[[#This Row],[Ende]]-Tabelle1[[#This Row],[Beginn]]-(Tabelle1[[#This Row],[Ende\nPause]]-Tabelle1[[#This Row],[Beginn\nPause]])","v":"00:00:00"},null,null,null,null,null,null,{"$f":"Tabelle13[[#This Row],[Ende]]-Tabelle13[[#This Row],[Beginn]]-(Tabelle13[[#This Row],[Ende\nPause]]-Tabelle13[[#This Row],[Beginn\nPause]])","v":"00:00:00"},null,null,null,null,null,null,{"$f":"Tabelle14[[#This Row],[Ende]]-Tabelle14[[#This Row],[Beginn]]-(Tabelle14[[#This Row],[Ende\nPause]]-Tabelle14[[#This Row],[Beginn\nPause]])","v":"00:00:00"},null,null,null,null,null,null,{"$f":"Tabelle15[[#This Row],[Ende]]-Tabelle15[[#This Row],[Beginn]]-(Tabelle15[[#This Row],[Ende\nPause]]-Tabelle15[[#This Row],[Beginn\nPause]])","v":"00:00:00"},null,null,null,null,null,null,{"$f":"Tabelle16[[#This Row],[Ende]]-Tabelle16[[#This Row],[Beginn]]-(Tabelle16[[#This Row],[Ende\nPause]]-Tabelle16[[#This Row],[Beginn\nPause]])","v":"00:00:00"}]
["Summe Abwes. Geplant",{"$f":"COUNTA(B14,B16,B18,B20,B22,B24,B26)","v":0},null,null,null,null,null,null,{"$f":"COUNTA(I14,I16,I18,I20,I22,I24,I26)","v":0},null,null,null,null,null,null,{"$f":"COUNTA(P14,P16,P18,P20,P22,P24,P26)","v":0},null,null,null,null,null,null,{"$f":"COUNTA(W14,W16,W18,W20,W22,W24,W26)","v":0},null,null,null,null,null,null,{"$f":"COUNTA(AD14,AD16,AD18,AD20,AD22,AD24,AD26)","v":0}]
["Summe Abwes. Änderungen",{"$f":"COUNTA(B15,B17,B19,B21,B23,B25,B27)","v":0},null,null,null,null,null,null,{"$f":"COUNTA(I15,I17,I19,I21,I23,I25,I27)","v":0},null,null,null,null,null,null,{"$f":"COUNTA(P15,P17,P19,P21,P23,P25,P27)","v":0},null,null,null,null,null,null,{"$f":"COUNTA(W15,W17,W19,W21,W23,W25,W27)","v":0},null,null,null,null,null,null,{"$f":"COUNTA(AD15,AD17,AD19,AD21,AD23,AD25,AD27)","v":0}]
[]
[]
[]
[null,"Datum & Unterschrift Mitarbeiter/in",null,null,null,null,null,null,"Datum & Unterschrift Mitarbeiter/in",null,null,null,null,null,null,"Datum & Unterschrift Mitarbeiter/in",null,null,null,null,null,null,"Datum & Unterschrift Mitarbeiter/in",null,null,null,null,null,null,"Datum & Unterschrift Mitarbeiter/in"]
[]
[]
[]
[null,"Name in Druckbuchstaben",null,null,null,null,null,null,"Name in Druckbuchstaben",null,null,null,null,null,null,"Name in Druckbuchstaben",null,null,null,null,null,null,"Name in Druckbuchstaben",null,null,null,null,null,null,"Name in Druckbuchstaben"]
[]
[]
[null,null,null,null,null,null,null,null,"Dienstplan genehmigt",null,null,null,null,null,null,null,null,null,null,null,null,null,"Dienstplan genehmigt"]
[null,null,null,null,null,null,null,null,"[   ]","JA",null,null,null,null,null,null,null,null,null,null,null,null,"[   ]","JA"]
[null,"Datum & Unterschrift Leitung",null,null,null,null,null,null,"[   ]","NEIN",null,null,null,null,null,"Datum & Unterschrift Betriebsrat",null,null,null,null,null,null,"[   ]","NEIN"]
[]
[]
[]
[null,"Name in Druckbuchstaben",null,null,null,null,null,null,null,null,null,null,null,null,null,"Name in Druckbuchstaben"]
[]
[null,"Bemerkungen:",null,null,null,null,null,null,null,null,null,null,null,null,null,null,null,null,null,null,null,null,null,null,null,null,"Legende-Abwesenheiten",null,null,null,null,"Bemerkung-Legende"]
[null,null,null,null,null,null,null,null,null,null,null,null,null,null,null,null,null,null,null,null,null,null,null,null,null,null,"Aktionen",null,null,"AK",null,"Betriebsrat",null,null,"BR"]
[null,null,null,null,null,null,null,null,null,null,null,null,null,null,null,null,null,null,null,null,null,null,null,null,null,null,"krank",null,null,"K",null,"Dienstbesprechung",null,null,"DB"]
[null,null,null,null,null,null,null,null,null,null,null,null,null,null,null,null,null,null,null,null,null,null,null,null,null,null,"Sonderurlaub",null,null,"SU",null,"Elterngespräch",null,null,"EG"]
[null,null,null,null,null,null,null,null,null,null,null,null,null,null,null,null,null,null,null,null,null,null,null,null,null,null,"Ü-Frei",null,null,"ÜF",null,"Gruppengespräch",null,null,"GG"]
[null,null,null,null,null,null,null,null,null,null,null,null,null,null,null,null,null,null,null,null,null,null,null,null,null,null,"Urlaub",null,null,"U"]